[Event "Late-Titled-Tuesday-Blitz-September-19-2023"]
[Site "Chess.com"]
[Date "2023.09.19"]
[Round "1"]
[White "Emp3rador"]
[Black "MikaelyanArman"]
[Result "0-1"]
[WhiteElo "2479"]
[BlackElo "2880"]
[TimeControl "180+1"]
[EndTime "14:06:11 PDT"]
[Termination "MikaelyanArman won on time"]

1. e4 {[%clk 0:03:00.3]} 1... e5 {[%clk 0:02:59.5]} 2. Nf3 {[%clk 0:02:59.5]}
2... Nc6 {[%clk 0:03:00.2]} 3. d4 {[%clk 0:02:59.7]} 3... exd4 {[%clk
0:03:00.2]} 4. Nxd4 {[%clk 0:03:00.6]} 4... Bc5 {[%clk 0:03:00.6]} 5. Nb3 {[%clk
0:02:58.7]} 5... Bb4+ {[%clk 0:03:01]} 6. c3 {[%clk 0:02:43.5]} 6... Be7 {[%clk
0:02:58.6]} 7. Bf4 {[%clk 0:02:35.9]} 7... d6 {[%clk 0:02:54.5]} 8. N1d2 {[%clk
0:02:35.4]} 8... Nf6 {[%clk 0:02:54.6]} 9. Be2 {[%clk 0:02:26.4]} 9... O-O
{[%clk 0:02:54.9]} 10. O-O {[%clk 0:02:26]} 10... Re8 {[%clk 0:02:55.2]} 11. Bg3
{[%clk 0:02:18.5]} 11... Bf8 {[%clk 0:02:50.8]} 12. f3 {[%clk 0:01:41.8]} 12...
Nh5 {[%clk 0:02:47]} 13. Bf2 {[%clk 0:01:26.4]} 13... Nf4 {[%clk 0:02:47.3]} 14.
Re1 {[%clk 0:01:25.7]} 14... Qg5 {[%clk 0:02:46.3]} 15. Bg3 {[%clk 0:00:55.1]}
15... h5 {[%clk 0:02:41.5]} 16. Bf1 {[%clk 0:00:45.9]} 16... g6 {[%clk
0:02:37.6]} 17. Nc4 {[%clk 0:00:40.7]} 17... h4 {[%clk 0:02:31.3]} 18. Bxf4
{[%clk 0:00:40.2]} 18... Qxf4 {[%clk 0:02:32.2]} 19. Qd2 {[%clk 0:00:38.6]}
19... Bh6 {[%clk 0:02:25.9]} 20. Qxf4 {[%clk 0:00:37.9]} 20... Bxf4 {[%clk
0:02:26.8]} 21. Rad1 {[%clk 0:00:36.5]} 21... Ne5 {[%clk 0:02:17]} 22. Ne3
{[%clk 0:00:34.4]} 22... Be6 {[%clk 0:02:13.7]} 23. Nd5 {[%clk 0:00:31.6]} 23...
Bxd5 {[%clk 0:02:13.9]} 24. Rxd5 {[%clk 0:00:30.4]} 24... h3 {[%clk 0:02:12.3]}
25. Red1 {[%clk 0:00:21.6]} 25... hxg2 {[%clk 0:02:12.3]} 26. Kxg2 {[%clk
0:00:20.4]} 26... Kg7 {[%clk 0:02:12.9]} 27. Nd4 {[%clk 0:00:13.6]} 27... Rh8
{[%clk 0:02:11.5]} 28. h3 {[%clk 0:00:13.2]} 28... Rh5 {[%clk 0:02:12.2]} 29.
Ne2 {[%clk 0:00:12.5]} 29... g5 {[%clk 0:01:51.6]} 30. Nd4 {[%clk 0:00:07.7]}
30... Rah8 {[%clk 0:01:47.8]} 31. Nf5+ {[%clk 0:00:07.5]} 31... Kf6 {[%clk
0:01:47.4]} 32. Kf2 {[%clk 0:00:07.8]} 32... Kg6 {[%clk 0:01:32.3]} 33. Bg2
{[%clk 0:00:06.9]} 33... Rxh3 {[%clk 0:01:31]} 34. Bxh3 {[%clk 0:00:06.7]} 34...
Rxh3 {[%clk 0:01:31.9]} 35. Kg1 {[%clk 0:00:02.6]} 35... Nxf3+ {[%clk
0:01:29.5]} 36. Kg2 {[%clk 0:00:02.5]} 36... g4 {[%clk 0:01:26.9]} 37. Nd4
{[%clk 0:00:02.1]} 37... Rh2+ {[%clk 0:01:26.1]} 0-1

[Event "Late-Titled-Tuesday-Blitz-September-19-2023"]
[Site "Chess.com"]
[Date "2023.09.19"]
[Round "1"]
[White "AlexandraBotez"]
[Black "GoldenShare"]
[Result "0-1"]
[WhiteElo "2303"]
[BlackElo "2591"]
[TimeControl "180+1"]
[EndTime "14:06:15 PDT"]
[Termination "GoldenShare won by resignation"]

1. d4 {[%clk 0:03:00.9]} 1... d5 {[%clk 0:02:59.2]} 2. c4 {[%clk 0:03:00.5]}
2... dxc4 {[%clk 0:03:00.1]} 3. e3 {[%clk 0:02:59.7]} 3... Nf6 {[%clk
0:02:59.4]} 4. Bxc4 {[%clk 0:02:59.8]} 4... e6 {[%clk 0:03:00.3]} 5. Nf3 {[%clk
0:02:59.4]} 5... a6 {[%clk 0:03:01.2]} 6. O-O {[%clk 0:02:59.3]} 6... b5 {[%clk
0:03:01.5]} 7. Bb3 {[%clk 0:02:59.6]} 7... Bb7 {[%clk 0:03:02.4]} 8. Nc3 {[%clk
0:02:59.2]} 8... Nbd7 {[%clk 0:03:01.7]} 9. Qe2 {[%clk 0:02:50]} 9... c5 {[%clk
0:03:01.7]} 10. Rd1 {[%clk 0:02:44.5]} 10... Qc7 {[%clk 0:03:00.8]} 11. e4
{[%clk 0:02:38.4]} 11... cxd4 {[%clk 0:03:00.1]} 12. Nxd4 {[%clk 0:02:38.6]}
12... Bc5 {[%clk 0:02:50.5]} 13. Bg5 {[%clk 0:02:17]} 13... Qb6 {[%clk
0:02:18.1]} 14. Nf3 {[%clk 0:01:35.6]} 14... Ng4 {[%clk 0:02:16.2]} 15. Rf1
{[%clk 0:01:33]} 15... O-O {[%clk 0:02:14]} 16. Rad1 {[%clk 0:01:31.9]} 16...
Nde5 {[%clk 0:02:08.3]} 17. Nxe5 {[%clk 0:01:28.4]} 17... Nxe5 {[%clk
0:02:09.2]} 18. Bf4 {[%clk 0:01:20.5]} 18... Nc6 {[%clk 0:02:06.2]} 19. Bd6
{[%clk 0:01:17.5]} 19... Nd4 {[%clk 0:01:59.5]} 20. Rxd4 {[%clk 0:01:04.4]}
20... Bxd4 {[%clk 0:02:00.4]} 21. Bxf8 {[%clk 0:01:04.4]} 21... Rxf8 {[%clk
0:02:00.3]} 22. Kh1 {[%clk 0:00:57.6]} 22... h6 {[%clk 0:01:55.8]} 23. f3 {[%clk
0:00:57.8]} 23... Rc8 {[%clk 0:01:53]} 24. Qd3 {[%clk 0:00:53.7]} 24... Bf6
{[%clk 0:01:40]} 25. h3 {[%clk 0:00:48.7]} 25... Rd8 {[%clk 0:01:40]} 26. Qc2
{[%clk 0:00:44.6]} 26... a5 {[%clk 0:01:36.4]} 27. a3 {[%clk 0:00:43.2]} 27...
b4 {[%clk 0:01:31.7]} 28. Na4 {[%clk 0:00:34.9]} 28... Qe3 {[%clk 0:01:31.3]}
29. axb4 {[%clk 0:00:32.6]} 29... axb4 {[%clk 0:01:32.2]} 30. Qc7 {[%clk
0:00:29.3]} 30... Ba6 {[%clk 0:01:26.7]} 31. Bc4 {[%clk 0:00:23.6]} 31... Rc8
{[%clk 0:01:22.5]} 32. Qd7 {[%clk 0:00:09]} 32... Rxc4 {[%clk 0:01:21.5]} 33.
Qe8+ {[%clk 0:00:07.4]} 33... Kh7 {[%clk 0:01:21.8]} 34. Qxf7 {[%clk 0:00:07.7]}
34... Rc1 {[%clk 0:01:09.8]} 35. Rxc1 {[%clk 0:00:06]} 35... Qxc1+ {[%clk
0:01:10.7]} 36. Kh2 {[%clk 0:00:06.7]} 36... Be5+ {[%clk 0:01:11.2]} 0-1

[Event "Late-Titled-Tuesday-Blitz-September-19-2023"]
[Site "Chess.com"]
[Date "2023.09.19"]
[Round "1"]
[White "Jaka_Brilej"]
[Black "dretch"]
[Result "1/2-1/2"]
[WhiteElo "2483"]
[BlackElo "2841"]
[TimeControl "180+1"]
[EndTime "14:06:18 PDT"]
[Termination "Game drawn by repetition"]

1. e4 {[%clk 0:02:58.7]} 1... e6 {[%clk 0:03:00.1]} 2. d4 {[%clk 0:02:58.4]}
2... d5 {[%clk 0:03:00.6]} 3. e5 {[%clk 0:02:59.1]} 3... c5 {[%clk 0:03:00.9]}
4. c3 {[%clk 0:02:59.7]} 4... Nc6 {[%clk 0:03:01.4]} 5. Nf3 {[%clk 0:03:00]}
5... Bd7 {[%clk 0:03:01.3]} 6. Be2 {[%clk 0:02:59.5]} 6... f6 {[%clk 0:02:59.4]}
7. O-O {[%clk 0:02:55.7]} 7... Qc7 {[%clk 0:02:58.7]} 8. Re1 {[%clk 0:02:55]}
8... fxe5 {[%clk 0:02:56]} 9. Nxe5 {[%clk 0:02:54.4]} 9... Nxe5 {[%clk
0:02:56.2]} 10. dxe5 {[%clk 0:02:55.3]} 10... O-O-O {[%clk 0:02:56.4]} 11. Bf1
{[%clk 0:02:55.6]} 11... Ne7 {[%clk 0:02:52]} 12. a4 {[%clk 0:02:55]} 12... Ng6
{[%clk 0:02:50.9]} 13. Na3 {[%clk 0:02:33.7]} 13... a6 {[%clk 0:02:41.7]} 14. b4
{[%clk 0:02:04]} 14... c4 {[%clk 0:01:40.8]} 15. Qd4 {[%clk 0:01:48.1]} 15...
Bxa4 {[%clk 0:01:32.3]} 16. Be3 {[%clk 0:01:04.7]} 16... Bc6 {[%clk 0:01:20.2]}
17. f4 {[%clk 0:01:02.4]} 17... Nh4 {[%clk 0:01:13.7]} 18. Qa7 {[%clk
0:00:47.7]} 18... Qb8 {[%clk 0:01:12.5]} 19. Qb6 {[%clk 0:00:47.8]} 19... Qc7
{[%clk 0:00:57.2]} 20. Qa7 {[%clk 0:00:47.8]} 20... Re8 {[%clk 0:00:51.2]} 21.
Reb1 {[%clk 0:00:33.7]} 21... Nf5 {[%clk 0:00:41.5]} 22. Bf2 {[%clk 0:00:33.7]}
22... Qb8 {[%clk 0:00:18.5]} 23. Qb6 {[%clk 0:00:33.1]} 23... Be7 {[%clk
0:00:18.9]} 24. b5 {[%clk 0:00:31.1]} 24... Bd8 {[%clk 0:00:18.7]} 25. Qc5
{[%clk 0:00:31.3]} 25... Be7 {[%clk 0:00:18.4]} 26. Qb6 {[%clk 0:00:31.8]} 26...
Bd8 {[%clk 0:00:18.1]} 27. Qc5 {[%clk 0:00:32.2]} 27... Be7 {[%clk 0:00:18.1]}
28. Qb6 {[%clk 0:00:32.7]} 1/2-1/2

[Event "Late-Titled-Tuesday-Blitz-September-19-2023"]
[Site "Chess.com"]
[Date "2023.09.19"]
[Round "1"]
[White "martinez_95"]
[Black "Kleyton_Lima"]
[Result "0-1"]
[WhiteElo "2188"]
[BlackElo "2535"]
[TimeControl "180+1"]
[EndTime "14:06:18 PDT"]
[Termination "Kleyton_Lima won by resignation"]

1. d4 {[%clk 0:02:59.5]} 1... Nf6 {[%clk 0:02:59.6]} 2. Bf4 {[%clk 0:02:58.3]}
2... g6 {[%clk 0:02:52.8]} 3. e3 {[%clk 0:02:54]} 3... Bg7 {[%clk 0:02:51]} 4.
Be2 {[%clk 0:02:53.3]} 4... d6 {[%clk 0:02:45.5]} 5. h4 {[%clk 0:02:53.3]} 5...
h5 {[%clk 0:02:44]} 6. Nd2 {[%clk 0:02:53.6]} 6... O-O {[%clk 0:02:37.7]} 7. Nh3
{[%clk 0:02:53.3]} 7... c5 {[%clk 0:02:31.9]} 8. c3 {[%clk 0:02:53.5]} 8... cxd4
{[%clk 0:02:26.7]} 9. exd4 {[%clk 0:02:51.8]} 9... Nc6 {[%clk 0:02:27.6]} 10.
Ng5 {[%clk 0:02:49.5]} 10... e5 {[%clk 0:02:24.1]} 11. Be3 {[%clk 0:02:48]}
11... exd4 {[%clk 0:02:17.6]} 12. cxd4 {[%clk 0:02:48.9]} 12... Ng4 {[%clk
0:02:12.9]} 13. Bxg4 {[%clk 0:02:46.4]} 13... Bxg4 {[%clk 0:02:11.4]} 14. f3
{[%clk 0:02:46.6]} 14... Bf5 {[%clk 0:02:01.4]} 15. g4 {[%clk 0:02:45.7]} 15...
Re8 {[%clk 0:01:57]} 16. gxf5 {[%clk 0:02:38.9]} 16... Rxe3+ {[%clk 0:01:56.2]}
17. Kf1 {[%clk 0:02:36.7]} 17... Nxd4 {[%clk 0:01:52.1]} 18. fxg6 {[%clk
0:02:26.4]} 18... fxg6 {[%clk 0:01:53]} 19. Nc4 {[%clk 0:02:14.1]} 19... Re8
{[%clk 0:01:33.2]} 20. Qd3 {[%clk 0:02:00.3]} 20... Qf6 {[%clk 0:01:29.4]} 21.
Rd1 {[%clk 0:01:46.4]} 21... d5 {[%clk 0:01:24.8]} 22. Ne3 {[%clk 0:01:41.6]}
22... Rad8 {[%clk 0:01:20]} 23. Kf2 {[%clk 0:01:29.4]} 23... Rf8 {[%clk
0:01:04.5]} 24. Rh3 {[%clk 0:01:28.3]} 24... Ne6 {[%clk 0:00:54.9]} 25. Nxd5
{[%clk 0:01:15.2]} 25... Qd4+ {[%clk 0:00:47.5]} 26. Qxd4 {[%clk 0:01:04.7]}
26... Bxd4+ {[%clk 0:00:48.4]} 27. Kg2 {[%clk 0:00:19.1]} 27... Nxg5 {[%clk
0:00:43.2]} 28. hxg5 {[%clk 0:00:15.7]} 28... Rxd5 {[%clk 0:00:43.6]} 0-1

[Event "Late-Titled-Tuesday-Blitz-September-19-2023"]
[Site "Chess.com"]
[Date "2023.09.19"]
[Round "1"]
[White "gunslinger222"]
[Black "johnathan113"]
[Result "0-1"]
[WhiteElo "2414"]
[BlackElo "2703"]
[TimeControl "180+1"]
[EndTime "14:06:20 PDT"]
[Termination "johnathan113 won by resignation"]

1. d4 {[%clk 0:02:59.3]} 1... Nf6 {[%clk 0:02:59.8]} 2. c4 {[%clk 0:02:58]} 2...
g6 {[%clk 0:03:00.3]} 3. Nc3 {[%clk 0:02:57.2]} 3... Bg7 {[%clk 0:03:01.2]} 4.
e4 {[%clk 0:02:57.9]} 4... O-O {[%clk 0:03:01.9]} 5. Be2 {[%clk 0:02:58.2]} 5...
d6 {[%clk 0:03:02.5]} 6. Be3 {[%clk 0:02:58.4]} 6... Na6 {[%clk 0:03:01.8]} 7.
Nf3 {[%clk 0:02:57.1]} 7... c6 {[%clk 0:03:01.8]} 8. O-O {[%clk 0:02:56.5]} 8...
e5 {[%clk 0:03:02.4]} 9. dxe5 {[%clk 0:02:42.8]} 9... dxe5 {[%clk 0:03:02.5]}
10. Qxd8 {[%clk 0:02:43.2]} 10... Rxd8 {[%clk 0:03:03.3]} 11. h3 {[%clk
0:02:43.9]} 11... Nh5 {[%clk 0:03:01.8]} 12. Rfd1 {[%clk 0:02:40.3]} 12... Re8
{[%clk 0:03:01.4]} 13. a3 {[%clk 0:02:34.5]} 13... Nf4 {[%clk 0:03:00.8]} 14.
Bf1 {[%clk 0:02:34.4]} 14... Ne6 {[%clk 0:02:50.3]} 15. b4 {[%clk 0:02:31.8]}
15... f5 {[%clk 0:02:45.7]} 16. c5 {[%clk 0:02:11.3]} 16... f4 {[%clk
0:02:37.8]} 17. Bd2 {[%clk 0:02:08.8]} 17... Nd4 {[%clk 0:02:37.3]} 18. Bc4+
{[%clk 0:02:08]} 18... Be6 {[%clk 0:02:31.9]} 19. Bxe6+ {[%clk 0:01:56.7]} 19...
Rxe6 {[%clk 0:02:31.1]} 20. Kf1 {[%clk 0:01:46]} 20... Rd8 {[%clk 0:02:28.3]}
21. Rab1 {[%clk 0:01:36.7]} 21... Re7 {[%clk 0:02:22.3]} 22. Na4 {[%clk
0:01:33.6]} 22... Red7 {[%clk 0:02:16.3]} 23. Nxd4 {[%clk 0:01:29.9]} 23... Rxd4
{[%clk 0:02:17.2]} 24. Ke2 {[%clk 0:01:26.6]} 24... Rxe4+ {[%clk 0:02:17.1]} 25.
Kf1 {[%clk 0:01:16.6]} 25... Red4 {[%clk 0:02:17.1]} 26. Ke2 {[%clk 0:01:12.4]}
26... g5 {[%clk 0:02:16.7]} 27. f3 {[%clk 0:01:12.4]} 27... e4 {[%clk
0:02:13.4]} 28. Bc3 {[%clk 0:00:55.6]} 28... Rxd1 {[%clk 0:02:10.1]} 29. Rxd1
{[%clk 0:00:56.3]} 29... exf3+ {[%clk 0:02:05.6]} 30. gxf3 {[%clk 0:00:55.4]}
30... Rxd1 {[%clk 0:02:06]} 31. Kxd1 {[%clk 0:00:55.7]} 31... Nc7 {[%clk
0:02:05.1]} 32. Bxg7 {[%clk 0:00:49.3]} 32... Kxg7 {[%clk 0:02:06]} 33. Nc3
{[%clk 0:00:49.6]} 33... Ne6 {[%clk 0:01:59.8]} 34. Ne4 {[%clk 0:00:47.1]} 34...
Kg6 {[%clk 0:01:53.4]} 35. Nd6 {[%clk 0:00:37.7]} 35... b6 {[%clk 0:01:48.8]}
36. b5 {[%clk 0:00:33.5]} 36... cxb5 {[%clk 0:01:40.2]} 37. c6 {[%clk
0:00:32.8]} 37... Nc7 {[%clk 0:01:40.2]} 38. Nc8 {[%clk 0:00:31.6]} 38... Kf6
{[%clk 0:01:33.9]} 39. Nxa7 {[%clk 0:00:30.4]} 39... Ke5 {[%clk 0:01:33.3]} 40.
Nc8 {[%clk 0:00:25.8]} 40... Kd5 {[%clk 0:01:31.9]} 41. Ne7+ {[%clk 0:00:17.3]}
41... Kd6 {[%clk 0:01:28.5]} 42. Ng8 {[%clk 0:00:17.6]} 42... Nd5 {[%clk
0:01:22.3]} 43. c7 {[%clk 0:00:12.2]} 43... Kxc7 {[%clk 0:01:21.5]} 0-1

[Event "Late-Titled-Tuesday-Blitz-September-19-2023"]
[Site "Chess.com"]
[Date "2023.09.19"]
[Round "1"]
[White "Reality-Stone"]
[Black "AEMEffi"]
[Result "1-0"]
[WhiteElo "2618"]
[BlackElo "2331"]
[TimeControl "180+1"]
[EndTime "14:06:23 PDT"]
[Termination "Reality-Stone won by resignation"]

1. c3 {[%clk 0:02:58.6]} 1... d5 {[%clk 0:02:49.5]} 2. d4 {[%clk 0:02:57.9]}
2... Nf6 {[%clk 0:02:48.4]} 3. Bf4 {[%clk 0:02:54.6]} 3... c5 {[%clk 0:02:47.6]}
4. e3 {[%clk 0:02:53.5]} 4... Nc6 {[%clk 0:02:47.3]} 5. Nd2 {[%clk 0:02:48.3]}
5... e6 {[%clk 0:02:44.2]} 6. Ngf3 {[%clk 0:02:46.9]} 6... Bd6 {[%clk
0:02:44.6]} 7. Bg3 {[%clk 0:02:41.6]} 7... Bxg3 {[%clk 0:02:36.2]} 8. hxg3
{[%clk 0:02:41.1]} 8... Qb6 {[%clk 0:02:35.6]} 9. Qb3 {[%clk 0:02:31.6]} 9...
Qxb3 {[%clk 0:02:24.4]} 10. axb3 {[%clk 0:02:32.2]} 10... cxd4 {[%clk
0:02:22.2]} 11. exd4 {[%clk 0:02:30.4]} 11... Bd7 {[%clk 0:02:17.4]} 12. b4
{[%clk 0:02:30.4]} 12... O-O {[%clk 0:02:07.4]} 13. Bd3 {[%clk 0:02:29.5]} 13...
a6 {[%clk 0:02:03.7]} 14. Ne5 {[%clk 0:02:29.1]} 14... g6 {[%clk 0:01:56.2]} 15.
Ndf3 {[%clk 0:02:25.1]} 15... Kg7 {[%clk 0:01:49.7]} 16. Ke2 {[%clk 0:02:20.7]}
16... Nxe5 {[%clk 0:01:46.5]} 17. Nxe5 {[%clk 0:02:21.6]} 17... Bb5 {[%clk
0:01:45.5]} 18. Bxb5 {[%clk 0:02:12.2]} 18... axb5 {[%clk 0:01:46.4]} 19. Ra5
{[%clk 0:02:12.5]} 19... Rxa5 {[%clk 0:01:26]} 20. bxa5 {[%clk 0:02:13.4]} 20...
Ra8 {[%clk 0:01:12.9]} 21. Ra1 {[%clk 0:02:13.5]} 21... Kf8 {[%clk 0:01:05.3]}
22. g4 {[%clk 0:01:52.7]} 22... Ke7 {[%clk 0:00:57.2]} 23. f3 {[%clk 0:01:45.4]}
23... Nd7 {[%clk 0:00:56]} 24. Nxd7 {[%clk 0:01:36.9]} 24... Kxd7 {[%clk
0:00:56.9]} 25. b4 {[%clk 0:01:37.4]} 25... h5 {[%clk 0:00:43.6]} 26. gxh5
{[%clk 0:01:33]} 26... gxh5 {[%clk 0:00:44.5]} 27. Rh1 {[%clk 0:01:33.2]} 27...
Rc8 {[%clk 0:00:41.2]} 28. Kd3 {[%clk 0:01:25.3]} 28... Rg8 {[%clk 0:00:40.5]}
29. Rxh5 {[%clk 0:01:21]} 29... Rxg2 {[%clk 0:00:40.2]} 30. Rh7 {[%clk
0:01:20.9]} 30... Ke7 {[%clk 0:00:38.7]} 31. Rh8 {[%clk 0:01:21.2]} 31... Rf2
{[%clk 0:00:36.7]} 32. Rb8 {[%clk 0:01:21]} 32... Rxf3+ {[%clk 0:00:36.6]} 33.
Kc2 {[%clk 0:01:21.4]} 33... Rf2+ {[%clk 0:00:28.8]} 34. Kd3 {[%clk 0:01:21.7]}
34... Rf3+ {[%clk 0:00:28.4]} 35. Kd2 {[%clk 0:01:22.2]} 35... Rf2+ {[%clk
0:00:28.2]} 36. Ke3 {[%clk 0:01:22.8]} 36... Ra2 {[%clk 0:00:24.2]} 37. Rxb7+
{[%clk 0:01:22.4]} 37... Kf6 {[%clk 0:00:24.3]} 38. Rxb5 {[%clk 0:01:22.4]}
38... Kf5 {[%clk 0:00:24.6]} 39. c4 {[%clk 0:01:17.4]} 39... Ra3+ {[%clk
0:00:22.3]} 40. Kd2 {[%clk 0:01:17.6]} 40... Ke4 {[%clk 0:00:22.9]} 41. c5
{[%clk 0:01:15.8]} 41... f5 {[%clk 0:00:17.2]} 42. c6 {[%clk 0:01:15.5]} 42...
f4 {[%clk 0:00:17.8]} 43. c7 {[%clk 0:01:14.6]} 43... f3 {[%clk 0:00:17.6]} 44.
c8=Q {[%clk 0:01:14.7]} 1-0

[Event "Late-Titled-Tuesday-Blitz-September-19-2023"]
[Site "Chess.com"]
[Date "2023.09.19"]
[Round "1"]
[White "Der_Honigdachs"]
[Black "Hoshka"]
[Result "1-0"]
[WhiteElo "2512"]
[BlackElo "2055"]
[TimeControl "180+1"]
[EndTime "14:06:26 PDT"]
[Termination "Der_Honigdachs won by resignation"]

1. d4 {[%clk 0:02:29]} 1... d5 {[%clk 0:02:59.4]} 2. Bf4 {[%clk 0:02:27.1]} 2...
c5 {[%clk 0:02:58.1]} 3. e3 {[%clk 0:02:26.9]} 3... Nc6 {[%clk 0:02:55.9]} 4.
Nf3 {[%clk 0:02:26]} 4... Nf6 {[%clk 0:02:55.3]} 5. c4 {[%clk 0:02:23.4]} 5...
cxd4 {[%clk 0:02:51.8]} 6. Nxd4 {[%clk 0:02:20.2]} 6... Qb6 {[%clk 0:02:39.8]}
7. Nb3 {[%clk 0:02:11.6]} 7... e5 {[%clk 0:02:30.4]} 8. Bg5 {[%clk 0:02:07.3]}
8... Bb4+ {[%clk 0:02:27.9]} 9. N1d2 {[%clk 0:02:06.6]} 9... d4 {[%clk 0:02:22]}
10. Bxf6 {[%clk 0:01:54.9]} 10... dxe3 {[%clk 0:02:07.8]} 11. Bxg7 {[%clk
0:01:12.4]} 11... Bxd2+ {[%clk 0:01:59.6]} 12. Nxd2 {[%clk 0:01:10.9]} 12...
exf2+ {[%clk 0:01:59.5]} 13. Ke2 {[%clk 0:01:11]} 13... Nd4+ {[%clk 0:01:44]}
14. Kxf2 {[%clk 0:01:02.6]} 14... Rg8 {[%clk 0:01:18.5]} 15. c5 {[%clk
0:00:56.6]} 15... Qxc5 {[%clk 0:01:08.4]} 16. Ne4 {[%clk 0:00:54.4]} 16... Qb6
{[%clk 0:00:49.1]} 17. Nf6+ {[%clk 0:00:49.8]} 17... Kd8 {[%clk 0:00:36.8]} 18.
Nxg8 {[%clk 0:00:49.1]} 18... Qxb2+ {[%clk 0:00:26.7]} 19. Kg1 {[%clk
0:00:48.5]} 19... Bg4 {[%clk 0:00:17.9]} 20. Qxg4 {[%clk 0:00:39.8]} 20... Qxa1
{[%clk 0:00:14.7]} 21. Bxe5 {[%clk 0:00:36.2]} 1-0

[Event "Late-Titled-Tuesday-Blitz-September-19-2023"]
[Site "Chess.com"]
[Date "2023.09.19"]
[Round "1"]
[White "zverr1"]
[Black "FabianoCaruana"]
[Result "0-1"]
[WhiteElo "2503"]
[BlackElo "3055"]
[TimeControl "180+1"]
[EndTime "14:06:30 PDT"]
[Termination "FabianoCaruana won by resignation"]

1. d4 {[%clk 0:02:53.3]} 1... b5 {[%clk 0:02:58.8]} 2. e4 {[%clk 0:02:49.3]}
2... Bb7 {[%clk 0:02:59.2]} 3. Bd3 {[%clk 0:02:46.7]} 3... e6 {[%clk 0:02:59]}
4. Nf3 {[%clk 0:02:45.7]} 4... a6 {[%clk 0:02:58.9]} 5. O-O {[%clk 0:02:39.9]}
5... Nf6 {[%clk 0:02:59]} 6. e5 {[%clk 0:02:35.3]} 6... Nd5 {[%clk 0:02:58.6]}
7. a3 {[%clk 0:02:00.7]} 7... d6 {[%clk 0:02:56.5]} 8. Nbd2 {[%clk 0:01:54.3]}
8... Nd7 {[%clk 0:02:55.3]} 9. c4 {[%clk 0:01:45.5]} 9... bxc4 {[%clk 0:02:53]}
10. Nxc4 {[%clk 0:01:46.4]} 10... Be7 {[%clk 0:02:51.4]} 11. Na5 {[%clk
0:01:36.2]} 11... Qb8 {[%clk 0:02:51.2]} 12. Nxb7 {[%clk 0:01:29.9]} 12... Qxb7
{[%clk 0:02:52.1]} 13. Qa4 {[%clk 0:01:24.3]} 13... h6 {[%clk 0:02:41.2]} 14.
Bd2 {[%clk 0:01:10.3]} 14... Nb6 {[%clk 0:02:38.4]} 15. Qc2 {[%clk 0:01:08.4]}
15... O-O {[%clk 0:02:38]} 16. Rac1 {[%clk 0:01:03.7]} 16... Nd5 {[%clk
0:02:36.1]} 17. Be4 {[%clk 0:00:57.2]} 17... Rfc8 {[%clk 0:02:33.3]} 18. h3
{[%clk 0:00:52]} 18... a5 {[%clk 0:02:27.8]} 19. Rb1 {[%clk 0:00:37.9]} 19... c5
{[%clk 0:02:18.1]} 20. exd6 {[%clk 0:00:36.7]} 20... Bxd6 {[%clk 0:02:19]} 21.
Qd3 {[%clk 0:00:22.8]} 21... N7f6 {[%clk 0:02:14.3]} 22. dxc5 {[%clk 0:00:20.4]}
22... Bxc5 {[%clk 0:02:13.2]} 23. Bxd5 {[%clk 0:00:15.5]} 23... Nxd5 {[%clk
0:02:12.2]} 24. b4 {[%clk 0:00:13.7]} 24... axb4 {[%clk 0:02:13.1]} 25. axb4
{[%clk 0:00:14.5]} 25... Nxb4 {[%clk 0:02:03.2]} 26. Bxb4 {[%clk 0:00:14.5]}
26... Bxb4 {[%clk 0:02:04.1]} 27. Qb3 {[%clk 0:00:13.2]} 27... Rab8 {[%clk
0:02:03.3]} 28. Rfc1 {[%clk 0:00:11.9]} 28... Rxc1+ {[%clk 0:02:02.1]} 29. Rxc1
{[%clk 0:00:12.8]} 29... Qe7 {[%clk 0:02:01.6]} 30. Rb1 {[%clk 0:00:12.1]} 30...
Bd6 {[%clk 0:02:01.5]} 31. Qc2 {[%clk 0:00:12]} 31... g6 {[%clk 0:01:58.8]} 32.
Rxb8+ {[%clk 0:00:11.4]} 32... Bxb8 {[%clk 0:01:58.4]} 33. Qc8+ {[%clk 0:00:12]}
33... Qf8 {[%clk 0:01:58.6]} 34. Qxf8+ {[%clk 0:00:12.7]} 34... Kxf8 {[%clk
0:01:59.5]} 35. g3 {[%clk 0:00:11]} 35... Ke7 {[%clk 0:01:59.4]} 36. h4 {[%clk
0:00:11.5]} 36... e5 {[%clk 0:01:58.7]} 37. Kg2 {[%clk 0:00:10.5]} 37... Ke6
{[%clk 0:01:59]} 38. Nd2 {[%clk 0:00:10.6]} 38... f5 {[%clk 0:01:59.2]} 39. f3
{[%clk 0:00:10.8]} 39... Kd5 {[%clk 0:01:59.6]} 40. g4 {[%clk 0:00:10.4]} 40...
Ba7 {[%clk 0:01:59.4]} 41. h5 {[%clk 0:00:08.8]} 41... gxh5 {[%clk 0:01:46]} 42.
gxf5 {[%clk 0:00:09.1]} 42... Be3 {[%clk 0:01:45.5]} 43. Ne4 {[%clk 0:00:09.1]}
43... Bg5 {[%clk 0:01:46.2]} 44. Kh3 {[%clk 0:00:09.4]} 44... Kc6 {[%clk
0:01:44.8]} 45. f6 {[%clk 0:00:08.4]} 45... Kd7 {[%clk 0:01:44.3]} 46. Nc5+
{[%clk 0:00:07.8]} 46... Ke8 {[%clk 0:01:44]} 47. Nd3 {[%clk 0:00:06.5]} 47...
Bxf6 {[%clk 0:01:44]} 48. Nxe5 {[%clk 0:00:06.9]} 48... Bxe5 {[%clk 0:01:43.7]}
49. f4 {[%clk 0:00:07.2]} 49... Bf6 {[%clk 0:01:43.4]} 50. f5 {[%clk 0:00:07.5]}
50... Ke7 {[%clk 0:01:44.3]} 51. Kh2 {[%clk 0:00:07.8]} 51... Kd6 {[%clk
0:01:45.2]} 52. Kh3 {[%clk 0:00:08.7]} 52... Ke5 {[%clk 0:01:46.1]} 53. Kh2
{[%clk 0:00:09.5]} 53... Ke4 {[%clk 0:01:47]} 54. Kh3 {[%clk 0:00:10.4]} 54...
Ke3 {[%clk 0:01:47.9]} 55. Kh2 {[%clk 0:00:11.1]} 55... Kf2 {[%clk 0:01:48.6]}
56. Kh3 {[%clk 0:00:12]} 56... Kg1 {[%clk 0:01:48.9]} 57. Kg3 {[%clk 0:00:12.2]}
57... h4+ {[%clk 0:01:46.7]} 58. Kg4 {[%clk 0:00:11.2]} 58... Kg2 {[%clk
0:01:46.7]} 59. Kh5 {[%clk 0:00:10.2]} 59... h3 {[%clk 0:01:47.6]} 60. Kg6
{[%clk 0:00:10.9]} 60... Bd4 {[%clk 0:01:48]} 0-1